[Event "Titled Tuesday Blitz May 18 2021"]
[White "Maghsoodloo, Parham"]
[Black "Deac, Bogdan-Daniel"]
[WhiteFideId "12539929"]
[BlackFideId "1226380"]
[WhiteElo "2601"]
[BlackElo "2605"]
[Result "0-1"]
[Round "05"]
[TimeControl "180+1"]
[Date "2021.05.18"]
[WhiteClock "0:00:32"]
[BlackClock "0:00:09"]

1. d4 {[%clk 0:03:00]}  Nf6 {[%clk 0:03:00]} 2. c4 {[%clk 0:03:00]}  e6 {[%clk 0:03:00]} 3. Nf3 {[%clk 0:03:01]}  d5 {[%clk 0:03:00]} 4. g3 {[%clk 0:03:01]}  Be7 {[%clk 0:03:00]} 5. Bg2 {[%clk 0:03:02]}  O-O {[%clk 0:03:01]} 6. O-O {[%clk 0:03:02]}  dxc4 {[%clk 0:03:01]} 7. Qc2 {[%clk 0:03:03]}  b6 {[%clk 0:02:58]} 8. Rd1 {[%clk 0:03:02]}  Bb7 {[%clk 0:02:58]} 9. Bg5 {[%clk 0:03:02]}  Nbd7 {[%clk 0:02:52]} 10. Nbd2 {[%clk 0:02:59]}  b5 {[%clk 0:02:52]} 11. a4 {[%clk 0:02:58]}  a6 {[%clk 0:02:48]} 12. b3 {[%clk 0:02:57]}  cxb3 {[%clk 0:02:42]} 13. Nxb3 {[%clk 0:02:57]}  Be4 {[%clk 0:02:42]} 14. Qc1 {[%clk 0:02:57]}  h6 {[%clk 0:02:16]} 15. Bxf6 {[%clk 0:02:36]}  Nxf6 {[%clk 0:02:13]} 16. Na5 {[%clk 0:02:36]}  c5 {[%clk 0:02:01]} 17. axb5 {[%clk 0:02:36]}  axb5 {[%clk 0:02:00]} 18. dxc5 {[%clk 0:02:36]}  Qc7 {[%clk 0:01:56]} 19. Nb3 {[%clk 0:02:36]}  Rxa1 {[%clk 0:01:54]} 20. Qxa1 {[%clk 0:02:36]}  Bc2 {[%clk 0:01:52]} 21. Nfd4 {[%clk 0:02:30]}  Bxd1 {[%clk 0:01:47]} 22. Qxd1 {[%clk 0:02:22]}  Bxc5 {[%clk 0:01:34]} 23. Nc6 {[%clk 0:01:58]}  Qb6 {[%clk 0:01:10]} 24. e3 {[%clk 0:01:54]}  Rc8 {[%clk 0:01:07]} 25. Qc2 {[%clk 0:01:30]}  Rxc6 {[%clk 0:00:31]} 26. Bxc6 {[%clk 0:01:29]}  Qxc6 {[%clk 0:00:31]} 27. Qxc5 {[%clk 0:01:29]}  Qf3 {[%clk 0:00:12]} 28. Qxb5 {[%clk 0:01:16]}  Ne4 {[%clk 0:00:11]} 29. Qf1 {[%clk 0:01:12]}  Nxf2 {[%clk 0:00:10]} 30. Na1 {[%clk 0:00:34]}  Nh3+ {[%clk 0:00:09]} 31. Qxh3 {[%clk 0:00:33]}  Qxe3+ {[%clk 0:00:09]} 32. Kg2 {[%clk 0:00:31]}  Qe4+ {[%clk 0:00:09]} 33. Kg1 {[%clk 0:00:31]}  Qd4+ {[%clk 0:00:09]} 34. Kg2 {[%clk 0:00:32]}  Qb2+ {[%clk 0:00:09]} 35. Kf3 {[%clk 0:00:31]}  Qxa1 {[%clk 0:00:09]} 36. Qh4 {[%clk 0:00:32]}  Qf6+ {[%clk 0:00:09]} 0-1


[Site "https://www.chess.com"]

[Event "Titled Tuesday Blitz May 18 2021"]
[White "Molina, Roberto Junio Brito"]
[Black "dropstoneDP"]
[WhiteFideId "2109450"]
[WhiteElo "2402"]
[BlackElo "2900"]
[Result "0-1"]
[Round "05"]
[TimeControl "180+1"]
[Date "2021.05.18"]
[WhiteClock "0:00:02"]
[BlackClock "0:00:07"]

1. d4 {[%clk 0:03:00]}  Nf6 {[%clk 0:02:34]} 2. e3 {[%clk 0:03:00]}  g6 {[%clk 0:02:35]} 3. Nf3 {[%clk 0:03:01]}  Bg7 {[%clk 0:02:33]} 4. b3 {[%clk 0:03:01]}  O-O {[%clk 0:02:33]} 5. Bb2 {[%clk 0:03:01]}  a5 {[%clk 0:02:33]} 6. a3 {[%clk 0:02:59]}  d5 {[%clk 0:02:31]} 7. Be2 {[%clk 0:02:58]}  c6 {[%clk 0:02:20]} 8. O-O {[%clk 0:02:59]}  a4 {[%clk 0:02:20]} 9. b4 {[%clk 0:02:45]}  b5 {[%clk 0:02:19]} 10. Ne5 {[%clk 0:02:45]}  Ra6 {[%clk 0:02:18]} 11. Nd2 {[%clk 0:02:41]}  Nbd7 {[%clk 0:02:15]} 12. f4 {[%clk 0:02:42]}  Ne8 {[%clk 0:02:14]} 13. e4 {[%clk 0:02:38]}  Nd6 {[%clk 0:02:05]} 14. Bd3 {[%clk 0:02:27]}  Nf6 {[%clk 0:02:00]} 15. Qe2 {[%clk 0:01:59]}  dxe4 {[%clk 0:01:43]} 16. Nxe4 {[%clk 0:01:57]}  Nfxe4 {[%clk 0:01:42]} 17. Bxe4 {[%clk 0:01:57]}  Nxe4 {[%clk 0:01:42]} 18. Qxe4 {[%clk 0:01:58]}  Bf5 {[%clk 0:01:37]} 19. Qe2 {[%clk 0:01:58]}  Be6 {[%clk 0:01:37]} 20. Rae1 {[%clk 0:01:55]}  Qd5 {[%clk 0:01:25]} 21. c3 {[%clk 0:01:53]}  Raa8 {[%clk 0:01:24]} 22. Bc1 {[%clk 0:01:53]}  Rac8 {[%clk 0:01:20]} 23. Nd3 {[%clk 0:01:46]}  Qc4 {[%clk 0:01:18]} 24. Qd2 {[%clk 0:01:29]}  Rfe8 {[%clk 0:01:01]} 25. Nc5 {[%clk 0:01:26]}  Bf5 {[%clk 0:00:55]} 26. h3 {[%clk 0:01:26]}  Qd5 {[%clk 0:00:54]} 27. g4 {[%clk 0:01:22]}  Bd7 {[%clk 0:00:54]} 28. Qg2 {[%clk 0:01:18]}  Qxg2+ {[%clk 0:00:49]} 29. Kxg2 {[%clk 0:01:19]}  Rcd8 {[%clk 0:00:49]} 30. f5 {[%clk 0:00:44]}  Bc8 {[%clk 0:00:48]} 31. Bg5 {[%clk 0:00:42]}  Bf8 {[%clk 0:00:44]} 32. Bh4 {[%clk 0:00:35]}  Rd5 {[%clk 0:00:41]} 33. Re5 {[%clk 0:00:34]}  f6 {[%clk 0:00:28]} 34. Rxd5 {[%clk 0:00:33]}  cxd5 {[%clk 0:00:29]} 35. Re1 {[%clk 0:00:30]}  gxf5 {[%clk 0:00:25]} 36. gxf5 {[%clk 0:00:31]}  Kf7 {[%clk 0:00:24]} 37. Ne6 {[%clk 0:00:29]}  Bd7 {[%clk 0:00:20]} 38. Re3 {[%clk 0:00:28]}  Rc8 {[%clk 0:00:19]} 39. Kf3 {[%clk 0:00:28]}  Bh6 {[%clk 0:00:18]} 40. Re2 {[%clk 0:00:15]}  Rxc3+ {[%clk 0:00:18]} 41. Kg4 {[%clk 0:00:16]}  Rxa3 {[%clk 0:00:16]} 42. Nd8+ {[%clk 0:00:14]}  Ke8 {[%clk 0:00:15]} 43. Nb7 {[%clk 0:00:12]}  Re3 {[%clk 0:00:14]} 44. Rc2 {[%clk 0:00:06]}  Re4+ {[%clk 0:00:14]} 45. Kh5 {[%clk 0:00:06]}  Bxf5 {[%clk 0:00:09]} 46. Rc7 {[%clk 0:00:04]}  Bf4 {[%clk 0:00:05]} 47. Rc3 {[%clk 0:00:01]}  Bg6+ {[%clk 0:00:05]} 48. Kg4 {[%clk 0:00:01]}  Bd2+ {[%clk 0:00:06]} 49. Kf3 {[%clk 0:00:02]}  Bxc3 {[%clk 0:00:07]} 0-1


[Site "https://www.chess.com"]

[Event "Titled Tuesday Blitz May 18 2021"]
[White "Naroditsky, Daniel"]
[Black "Wong, Yinn Long"]
[WhiteFideId "2026961"]
[BlackFideId "5707684"]
[WhiteElo "2608"]
[BlackElo "2016"]
[Result "1-0"]
[Round "05"]
[TimeControl "180+1"]
[Date "2021.05.18"]
[WhiteClock "0:01:14"]
[BlackClock "0:00:14"]

1. b3 {[%clk 0:03:00]}  d5 {[%clk 0:02:59]} 2. Bb2 {[%clk 0:02:53]}  Bg4 {[%clk 0:02:59]} 3. f3 {[%clk 0:02:53]}  Bf5 {[%clk 0:02:54]} 4. e3 {[%clk 0:02:51]}  Nf6 {[%clk 0:02:48]} 5. g4 {[%clk 0:02:44]}  Bg6 {[%clk 0:02:47]} 6. Ne2 {[%clk 0:02:37]}  e6 {[%clk 0:02:42]} 7. h4 {[%clk 0:02:34]}  h5 {[%clk 0:02:41]} 8. g5 {[%clk 0:02:32]}  Nfd7 {[%clk 0:02:37]} 9. Nf4 {[%clk 0:02:32]}  Rg8 {[%clk 0:02:08]} 10. Nxg6 {[%clk 0:02:30]}  fxg6 {[%clk 0:02:08]} 11. f4 {[%clk 0:02:18]}  Bd6 {[%clk 0:02:03]} 12. c4 {[%clk 0:02:12]}  Qe7 {[%clk 0:01:56]} 13. Qc2 {[%clk 0:02:10]}  Nf8 {[%clk 0:01:38]} 14. Bd3 {[%clk 0:02:02]}  Qf7 {[%clk 0:01:33]} 15. Nc3 {[%clk 0:01:57]}  Nc6 {[%clk 0:01:19]} 16. a3 {[%clk 0:01:54]}  O-O-O {[%clk 0:01:14]} 17. O-O-O {[%clk 0:01:54]}  Qe7 {[%clk 0:00:54]} 18. cxd5 {[%clk 0:01:50]}  exd5 {[%clk 0:00:45]} 19. Nxd5 {[%clk 0:01:51]}  Qe8 {[%clk 0:00:45]} 20. Be4 {[%clk 0:01:43]}  Ne7 {[%clk 0:00:43]} 21. Kb1 {[%clk 0:01:38]}  Ne6 {[%clk 0:00:40]} 22. b4 {[%clk 0:01:28]}  Nxd5 {[%clk 0:00:31]} 23. Bxd5 {[%clk 0:01:29]}  c6 {[%clk 0:00:23]} 24. Be4 {[%clk 0:01:19]}  Nf8 {[%clk 0:00:15]} 25. b5 {[%clk 0:01:19]}  c5 {[%clk 0:00:15]} 26. Qc4 {[%clk 0:01:18]}  Ne6 {[%clk 0:00:14]} 27. Bd5 {[%clk 0:01:17]}  Kd7 {[%clk 0:00:14]} 28. Bxb7 {[%clk 0:01:14]} 1-0


[Site "https://www.chess.com"]

[Event "Titled Tuesday Blitz May 18 2021"]
[White "Nesterov, Arseniy"]
[Black "Sadhwani, Raunak"]
[WhiteFideId "24198455"]
[BlackFideId "35093487"]
[WhiteElo "2441"]
[BlackElo "2514"]
[Result "1-0"]
[Round "05"]
[TimeControl "180+1"]
[Date "2021.05.18"]
[WhiteClock "0:00:11"]
[BlackClock "0:00:01"]

1. d4 {[%clk 0:03:00]}  c5 {[%clk 0:03:00]} 2. d5 {[%clk 0:03:01]}  e5 {[%clk 0:03:01]} 3. c4 {[%clk 0:03:01]}  d6 {[%clk 0:03:01]} 4. Nc3 {[%clk 0:03:01]}  Be7 {[%clk 0:03:01]} 5. Nf3 {[%clk 0:03:01]}  Bg4 {[%clk 0:03:01]} 6. e4 {[%clk 0:02:58]}  Bxf3 {[%clk 0:02:59]} 7. Qxf3 {[%clk 0:02:59]}  Bg5 {[%clk 0:02:58]} 8. Bxg5 {[%clk 0:02:58]}  Qxg5 {[%clk 0:02:59]} 9. h4 {[%clk 0:02:59]}  Qe7 {[%clk 0:02:59]} 10. g3 {[%clk 0:02:59]}  Nf6 {[%clk 0:02:50]} 11. Bh3 {[%clk 0:02:53]}  h5 {[%clk 0:02:46]} 12. O-O {[%clk 0:02:52]}  O-O {[%clk 0:02:43]} 13. a3 {[%clk 0:02:52]}  Nbd7 {[%clk 0:02:39]} 14. Qe2 {[%clk 0:02:49]}  g6 {[%clk 0:02:36]} 15. b4 {[%clk 0:02:43]}  Rac8 {[%clk 0:02:35]} 16. Rfb1 {[%clk 0:02:30]}  Rb8 {[%clk 0:02:31]} 17. Na4 {[%clk 0:02:26]}  b6 {[%clk 0:02:27]} 18. bxc5 {[%clk 0:02:23]}  Nxc5 {[%clk 0:02:27]} 19. Nxc5 {[%clk 0:02:23]}  bxc5 {[%clk 0:02:28]} 20. Qc2 {[%clk 0:02:18]}  Qc7 {[%clk 0:02:27]} 21. f3 {[%clk 0:02:09]}  Rb6 {[%clk 0:02:23]} 22. Rxb6 {[%clk 0:02:03]}  axb6 {[%clk 0:02:24]} 23. Rb1 {[%clk 0:02:03]}  Rb8 {[%clk 0:02:22]} 24. Rb3 {[%clk 0:02:02]}  Kf8 {[%clk 0:02:22]} 25. Kh2 {[%clk 0:01:56]}  Qa7 {[%clk 0:02:22]} 26. Qb2 {[%clk 0:01:54]}  Qa6 {[%clk 0:02:14]} 27. Rb5 {[%clk 0:01:45]}  Ke7 {[%clk 0:01:49]} 28. f4 {[%clk 0:01:34]}  exf4 {[%clk 0:00:48]} 29. e5 {[%clk 0:01:34]}  fxg3+ {[%clk 0:00:49]} 30. Kg2 {[%clk 0:01:33]}  Ne4 {[%clk 0:00:45]} 31. Qe2 {[%clk 0:01:04]}  Nc3 {[%clk 0:00:08]} 32. Qf3 {[%clk 0:01:02]}  Nxb5 {[%clk 0:00:08]} 33. Qf6+ {[%clk 0:01:01]}  Kf8 {[%clk 0:00:04]} 34. Qh8+ {[%clk 0:00:57]}  Ke7 {[%clk 0:00:05]} 35. exd6+ {[%clk 0:00:51]}  Nxd6 {[%clk 0:00:01]} 36. Qe5+ {[%clk 0:00:50]}  Kf8 {[%clk 0:00:02]} 37. Qxd6+ {[%clk 0:00:50]}  Kg7 {[%clk 0:00:03]} 38. Qxb8 {[%clk 0:00:50]}  Qxc4 {[%clk 0:00:03]} 39. Qe5+ {[%clk 0:00:50]}  Kf8 {[%clk 0:00:04]} 40. d6 {[%clk 0:00:43]}  Qc2+ {[%clk 0:00:04]} 41. Kxg3 {[%clk 0:00:42]}  Qd3+ {[%clk 0:00:03]} 42. Kh2 {[%clk 0:00:42]}  Qd4 {[%clk 0:00:03]} 43. Qe7+ {[%clk 0:00:30]}  Kg7 {[%clk 0:00:04]} 44. d7 {[%clk 0:00:29]}  Qf4+ {[%clk 0:00:04]} 45. Kh1 {[%clk 0:00:28]}  Qc1+ {[%clk 0:00:04]} 46. Kg2 {[%clk 0:00:28]}  Qd2+ {[%clk 0:00:05]} 47. Kf1 {[%clk 0:00:26]}  Qd3+ {[%clk 0:00:05]} 48. Ke1 {[%clk 0:00:24]}  Qc3+ {[%clk 0:00:05]} 49. Ke2 {[%clk 0:00:24]}  Qc2+ {[%clk 0:00:04]} 50. Kf3 {[%clk 0:00:20]}  Qd1+ {[%clk 0:00:02]} 51. Qe2 {[%clk 0:00:17]}  Qd5+ {[%clk 0:00:03]} 52. Qe4 {[%clk 0:00:17]}  Qd1+ {[%clk 0:00:03]} 53. Kg3 {[%clk 0:00:15]}  c4 {[%clk 0:00:02]} 54. Qe5+ {[%clk 0:00:15]}  Kh7 {[%clk 0:00:02]} 55. Qf6 {[%clk 0:00:12]}  Qd3+ {[%clk 0:00:02]} 56. Qf3 {[%clk 0:00:11]}  Qd6+ {[%clk 0:00:01]} 57. Kg2 {[%clk 0:00:11]} 1-0


[Site "https://www.chess.com"]

[Event "Titled Tuesday Blitz May 18 2021"]
[White "Pantsulaia, Levan"]
[Black "Cunjalo, Faris"]
[WhiteFideId "13602071"]
[BlackFideId "14410710"]
[WhiteElo "2530"]
[BlackElo "2234"]
[Result "1-0"]
[Round "05"]
[TimeControl "180+1"]
[Date "2021.05.18"]
[WhiteClock "0:01:56"]
[BlackClock "0:01:12"]

1. g3 {[%clk 0:03:00]}  d5 {[%clk 0:02:59]} 2. Bg2 {[%clk 0:03:00]}  g6 {[%clk 0:02:56]} 3. c4 {[%clk 0:03:00]}  d4 {[%clk 0:02:56]} 4. Nf3 {[%clk 0:02:59]}  Bg7 {[%clk 0:02:56]} 5. O-O {[%clk 0:02:59]}  c5 {[%clk 0:02:53]} 6. d3 {[%clk 0:02:58]}  Nc6 {[%clk 0:02:53]} 7. e3 {[%clk 0:02:55]}  Nf6 {[%clk 0:02:50]} 8. exd4 {[%clk 0:02:54]}  cxd4 {[%clk 0:02:50]} 9. Re1 {[%clk 0:02:53]}  Nd7 {[%clk 0:02:48]} 10. Nbd2 {[%clk 0:02:41]}  O-O {[%clk 0:02:47]} 11. a3 {[%clk 0:02:40]}  a5 {[%clk 0:02:47]} 12. Rb1 {[%clk 0:02:40]}  Nc5 {[%clk 0:02:39]} 13. Nb3 {[%clk 0:02:38]}  Nxb3 {[%clk 0:02:37]} 14. Qxb3 {[%clk 0:02:37]}  a4 {[%clk 0:02:37]} 15. Qc2 {[%clk 0:02:36]}  Re8 {[%clk 0:02:24]} 16. b4 {[%clk 0:02:35]}  axb3 {[%clk 0:02:25]} 17. Rxb3 {[%clk 0:02:36]}  e5 {[%clk 0:02:17]} 18. Ng5 {[%clk 0:02:35]}  h6 {[%clk 0:02:17]} 19. Ne4 {[%clk 0:02:35]}  Qe7 {[%clk 0:02:11]} 20. c5 {[%clk 0:02:29]}  Be6 {[%clk 0:02:11]} 21. Rb1 {[%clk 0:02:22]}  Ra7 {[%clk 0:01:45]} 22. Nd6 {[%clk 0:02:22]}  Rd8 {[%clk 0:01:39]} 23. Bd2 {[%clk 0:02:14]}  Rd7 {[%clk 0:01:27]} 24. Nc8 {[%clk 0:02:12]}  Qd8 {[%clk 0:01:20]} 25. Nxa7 {[%clk 0:02:10]}  Nxa7 {[%clk 0:01:20]} 26. Rxb7 {[%clk 0:02:10]}  Rxb7 {[%clk 0:01:18]} 27. Bxb7 {[%clk 0:02:11]}  Qc7 {[%clk 0:01:19]} 28. Bg2 {[%clk 0:02:10]}  Nb5 {[%clk 0:01:17]} 29. c6 {[%clk 0:02:07]}  Nxa3 {[%clk 0:01:15]} 30. Qc5 {[%clk 0:02:06]}  Bf8 {[%clk 0:01:14]} 31. Qxe5 {[%clk 0:02:06]}  Bd6 {[%clk 0:01:12]} 32. Qa5 {[%clk 0:01:56]} 1-0


[Site "https://www.chess.com"]

[Event "Titled Tuesday Blitz May 18 2021"]
[White "Postny, Evgeny"]
[Black "Sasikiran, Krishnan"]
[WhiteFideId "2804344"]
[BlackFideId "5004985"]
[WhiteElo "2537"]
[BlackElo "2552"]
[Result "1-0"]
[Round "05"]
[TimeControl "180+1"]
[Date "2021.05.18"]
[WhiteClock "0:00:16"]
[BlackClock "0:00:57"]

1. d4 {[%clk 0:03:00]}  d5 {[%clk 0:03:00]} 2. c4 {[%clk 0:03:00]}  c6 {[%clk 0:03:00]} 3. Nf3 {[%clk 0:03:00]}  Nf6 {[%clk 0:03:00]} 4. Nbd2 {[%clk 0:03:00]}  a5 {[%clk 0:02:58]} 5. g3 {[%clk 0:02:54]}  g6 {[%clk 0:02:57]} 6. Bg2 {[%clk 0:02:54]}  Bg7 {[%clk 0:02:57]} 7. O-O {[%clk 0:02:54]}  O-O {[%clk 0:02:57]} 8. b3 {[%clk 0:02:51]}  Bf5 {[%clk 0:02:56]} 9. Bb2 {[%clk 0:02:48]}  a4 {[%clk 0:02:46]} 10. bxa4 {[%clk 0:02:42]}  Qa5 {[%clk 0:02:45]} 11. Ne5 {[%clk 0:02:23]}  Qxa4 {[%clk 0:02:23]} 12. Qxa4 {[%clk 0:02:24]}  Rxa4 {[%clk 0:02:22]} 13. cxd5 {[%clk 0:02:20]}  cxd5 {[%clk 0:02:21]} 14. Nb3 {[%clk 0:02:12]}  Na6 {[%clk 0:02:15]} 15. Rfc1 {[%clk 0:02:02]}  h5 {[%clk 0:02:10]} 16. e3 {[%clk 0:02:00]}  Ra8 {[%clk 0:02:07]} 17. a3 {[%clk 0:01:49]}  Ng4 {[%clk 0:01:51]} 18. Nxg4 {[%clk 0:01:34]}  hxg4 {[%clk 0:01:50]} 19. Bxd5 {[%clk 0:01:34]}  Ra7 {[%clk 0:01:47]} 20. Bc4 {[%clk 0:01:22]}  Bd7 {[%clk 0:01:43]} 21. Bxa6 {[%clk 0:01:16]}  R4xa6 {[%clk 0:01:37]} 22. Nc5 {[%clk 0:01:16]}  Rb6 {[%clk 0:01:33]} 23. Nxd7 {[%clk 0:01:07]}  Rxb2 {[%clk 0:01:32]} 24. Rc8+ {[%clk 0:00:55]}  Kh7 {[%clk 0:01:31]} 25. Rc7 {[%clk 0:00:48]}  Ra5 {[%clk 0:01:23]} 26. Nc5 {[%clk 0:00:42]}  e5 {[%clk 0:01:22]} 27. Nd3 {[%clk 0:00:29]}  Rd2 {[%clk 0:01:21]} 28. Nxe5 {[%clk 0:00:29]}  Bxe5 {[%clk 0:01:21]} 29. dxe5 {[%clk 0:00:28]}  Rxe5 {[%clk 0:01:12]} 30. Rxf7+ {[%clk 0:00:26]}  Kh6 {[%clk 0:01:13]} 31. Rxb7 {[%clk 0:00:23]}  Rf5 {[%clk 0:01:13]} 32. Rf1 {[%clk 0:00:23]}  Ra2 {[%clk 0:01:13]} 33. Rb4 {[%clk 0:00:22]}  Kg5 {[%clk 0:01:13]} 34. a4 {[%clk 0:00:22]}  Rc5 {[%clk 0:01:03]} 35. Rb5 {[%clk 0:00:21]}  Rxb5 {[%clk 0:01:02]} 36. axb5 {[%clk 0:00:22]}  Rb2 {[%clk 0:01:03]} 37. Kg2 {[%clk 0:00:18]}  Rxb5 {[%clk 0:01:03]} 38. h3 {[%clk 0:00:18]}  gxh3+ {[%clk 0:00:59]} 39. Kxh3 {[%clk 0:00:19]}  Rb3 {[%clk 0:00:59]} 40. Kg2 {[%clk 0:00:19]}  Kg4 {[%clk 0:00:59]} 41. Rc1 {[%clk 0:00:18]}  g5 {[%clk 0:00:58]} 42. Rc4+ {[%clk 0:00:18]}  Kf5 {[%clk 0:00:58]} 43. g4+ {[%clk 0:00:17]}  Ke5 {[%clk 0:00:58]} 44. Rc5+ {[%clk 0:00:17]}  Kf6 {[%clk 0:00:58]} 45. Rc6+ {[%clk 0:00:17]}  Ke5 {[%clk 0:00:57]} 46. Rg6 {[%clk 0:00:16]} 1-0


[Site "https://www.chess.com"]

[Event "Titled Tuesday Blitz May 18 2021"]
[White "Rasulov, Vugar"]
[Black "Sjugirov, Sanan"]
[WhiteFideId "13402390"]
[BlackFideId "4189302"]
[WhiteElo "2553"]
[BlackElo "2472"]
[Result "0-1"]
[Round "05"]
[TimeControl "180+1"]
[Date "2021.05.18"]
[WhiteClock "0:00:13"]
[BlackClock "0:00:03"]

1. e4 {[%clk 0:03:00]}  c5 {[%clk 0:02:58]} 2. Nf3 {[%clk 0:03:01]}  d6 {[%clk 0:02:58]} 3. d4 {[%clk 0:03:01]}  cxd4 {[%clk 0:02:58]} 4. Nxd4 {[%clk 0:03:02]}  Nf6 {[%clk 0:02:58]} 5. Nc3 {[%clk 0:03:03]}  a6 {[%clk 0:02:59]} 6. Be3 {[%clk 0:03:03]}  e5 {[%clk 0:02:58]} 7. Nf3 {[%clk 0:03:03]}  Be7 {[%clk 0:02:53]} 8. Bc4 {[%clk 0:03:03]}  O-O {[%clk 0:02:53]} 9. O-O {[%clk 0:03:03]}  Be6 {[%clk 0:02:38]} 10. Bxe6 {[%clk 0:03:02]}  fxe6 {[%clk 0:02:39]} 11. Na4 {[%clk 0:03:02]}  Ng4 {[%clk 0:02:27]} 12. Qd3 {[%clk 0:03:02]}  Nxe3 {[%clk 0:02:27]} 13. Qxe3 {[%clk 0:03:03]}  b5 {[%clk 0:02:26]} 14. Nb6 {[%clk 0:03:02]}  Ra7 {[%clk 0:02:26]} 15. Nd5 {[%clk 0:03:03]}  Rb7 {[%clk 0:02:21]} 16. Qd3 {[%clk 0:02:59]}  Kh8 {[%clk 0:02:04]} 17. Nxe7 {[%clk 0:02:59]}  Qxe7 {[%clk 0:02:05]} 18. Rfd1 {[%clk 0:03:00]}  Rb6 {[%clk 0:02:04]} 19. c3 {[%clk 0:02:52]}  Nd7 {[%clk 0:02:03]} 20. b4 {[%clk 0:02:52]}  Nf6 {[%clk 0:01:37]} 21. a4 {[%clk 0:02:52]}  Qc7 {[%clk 0:01:11]} 22. axb5 {[%clk 0:02:49]}  axb5 {[%clk 0:01:12]} 23. h3 {[%clk 0:02:33]}  d5 {[%clk 0:01:07]} 24. Nd2 {[%clk 0:02:29]}  h6 {[%clk 0:01:01]} 25. exd5 {[%clk 0:02:20]}  exd5 {[%clk 0:01:00]} 26. Nf1 {[%clk 0:02:19]}  Rc6 {[%clk 0:00:48]} 27. Ra3 {[%clk 0:01:41]}  Ne4 {[%clk 0:00:45]} 28. Qe3 {[%clk 0:01:26]}  Nxc3 {[%clk 0:00:41]} 29. Rda1 {[%clk 0:01:26]}  d4 {[%clk 0:00:38]} 30. Qd3 {[%clk 0:01:19]}  e4 {[%clk 0:00:37]} 31. Qd2 {[%clk 0:01:20]}  Rcf6 {[%clk 0:00:34]} 32. Ra8 {[%clk 0:01:20]}  Qc4 {[%clk 0:00:30]} 33. Rxf8+ {[%clk 0:01:19]}  Rxf8 {[%clk 0:00:31]} 34. Ng3 {[%clk 0:01:17]}  Qxb4 {[%clk 0:00:20]} 35. Nxe4 {[%clk 0:01:14]}  Qc4 {[%clk 0:00:20]} 36. Ng3 {[%clk 0:01:12]}  b4 {[%clk 0:00:19]} 37. Ra7 {[%clk 0:01:09]}  b3 {[%clk 0:00:17]} 38. Rb7 {[%clk 0:01:07]}  Nb5 {[%clk 0:00:11]} 39. Kh2 {[%clk 0:00:58]}  Qd5 {[%clk 0:00:04]} 40. Qb4 {[%clk 0:00:58]}  Qxb7 {[%clk 0:00:04]} 41. Qxf8+ {[%clk 0:00:58]}  Kh7 {[%clk 0:00:04]} 42. Qf5+ {[%clk 0:00:56]}  g6 {[%clk 0:00:04]} 43. Qd3 {[%clk 0:00:49]}  Nc3 {[%clk 0:00:02]} 44. Nh5 {[%clk 0:00:44]}  b2 {[%clk 0:00:02]} 45. Nf6+ {[%clk 0:00:44]}  Kg7 {[%clk 0:00:02]} 46. Qxd4 {[%clk 0:00:45]}  Qc7+ {[%clk 0:00:02]} 47. f4 {[%clk 0:00:41]}  Kf7 {[%clk 0:00:02]} 48. Ng4 {[%clk 0:00:38]}  b1=Q {[%clk 0:00:02]} 49. Qf6+ {[%clk 0:00:37]}  Ke8 {[%clk 0:00:03]} 50. Ne5 {[%clk 0:00:36]}  Qb3 {[%clk 0:00:02]} 51. Qxg6+ {[%clk 0:00:29]}  Kd8 {[%clk 0:00:03]} 52. Qxh6 {[%clk 0:00:27]}  Kc8 {[%clk 0:00:02]} 53. Qg6 {[%clk 0:00:23]}  Kb7 {[%clk 0:00:03]} 54. h4 {[%clk 0:00:20]}  Qb4 {[%clk 0:00:03]} 55. Qg4 {[%clk 0:00:17]}  Nd5 {[%clk 0:00:03]} 56. Nd3 {[%clk 0:00:12]}  Qd4 {[%clk 0:00:03]} 57. Qf3 {[%clk 0:00:12]}  Ka7 {[%clk 0:00:02]} 58. g3 {[%clk 0:00:12]}  Qc2+ {[%clk 0:00:02]} 59. Kh3 {[%clk 0:00:12]}  Qcxd3 {[%clk 0:00:03]} 60. Qg4 {[%clk 0:00:13]}  Qf1+ {[%clk 0:00:03]} 61. Kh2 {[%clk 0:00:13]}  Qdg1# {[%clk 0:00:03]} 0-1


[Site "https://www.chess.com"]

[Event "Titled Tuesday Blitz May 18 2021"]
[White "Salem, A.R. Saleh"]
[Black "Preotu, Razvan"]
[WhiteFideId "9301348"]
[BlackFideId "2613280"]
[WhiteElo "2659"]
[BlackElo "2407"]
[Result "1-0"]
[Round "05"]
[TimeControl "180+1"]
[Date "2021.05.18"]
[WhiteClock "0:01:38"]
[BlackClock "0:00:13"]

1. d4 {[%clk 0:02:57]}  Nf6 {[%clk 0:03:00]} 2. c4 {[%clk 0:02:58]}  g6 {[%clk 0:02:59]} 3. Nc3 {[%clk 0:02:58]}  d5 {[%clk 0:03:00]} 4. cxd5 {[%clk 0:02:59]}  Nxd5 {[%clk 0:03:00]} 5. e4 {[%clk 0:03:00]}  Nxc3 {[%clk 0:03:01]} 6. bxc3 {[%clk 0:03:01]}  Bg7 {[%clk 0:03:01]} 7. Bc4 {[%clk 0:03:02]}  c5 {[%clk 0:03:02]} 8. Ne2 {[%clk 0:03:03]}  Nc6 {[%clk 0:03:02]} 9. Be3 {[%clk 0:03:03]}  O-O {[%clk 0:03:02]} 10. Rc1 {[%clk 0:03:04]}  cxd4 {[%clk 0:02:55]} 11. cxd4 {[%clk 0:03:05]}  Qa5+ {[%clk 0:02:56]} 12. Rc3 {[%clk 0:03:06]}  Rd8 {[%clk 0:02:26]} 13. Qd2 {[%clk 0:03:06]}  e6 {[%clk 0:01:47]} 14. O-O {[%clk 0:03:04]}  b5 {[%clk 0:01:44]} 15. Bb3 {[%clk 0:03:02]}  Bb7 {[%clk 0:01:44]} 16. Rfc1 {[%clk 0:02:58]}  Rac8 {[%clk 0:01:41]} 17. h4 {[%clk 0:02:30]}  Qb4 {[%clk 0:01:09]} 18. h5 {[%clk 0:01:51]}  Nxd4 {[%clk 0:00:50]} 19. Nxd4 {[%clk 0:01:47]}  Rxc3 {[%clk 0:00:39]} 20. Rxc3 {[%clk 0:01:48]}  Bxd4 {[%clk 0:00:39]} 21. Rc8 {[%clk 0:01:46]}  Qf8 {[%clk 0:00:18]} 22. Rxd8 {[%clk 0:01:44]}  Qxd8 {[%clk 0:00:19]} 23. Qxd4 {[%clk 0:01:43]}  Qxd4 {[%clk 0:00:18]} 24. Bxd4 {[%clk 0:01:44]}  Bxe4 {[%clk 0:00:15]} 25. f3 {[%clk 0:01:40]}  Bc6 {[%clk 0:00:12]} 26. hxg6 {[%clk 0:01:37]}  hxg6 {[%clk 0:00:13]} 27. Bxa7 {[%clk 0:01:38]} 1-0


[Site "https://www.chess.com"]